Cogmind - Beta 14 @@@ ROGUE MODE // 2024.08.26 @ 12:31:22 Player: MadBadger Result: Destroyed by G-47 Trooper with Particle Gun Performance ------------- Evolutions (0) 0 Regions Visited (1) 200 Robots Destroyed (64) 320 Value Destroyed (744) 744 Prototype IDs (0) 0 Alien Tech Used (0) 0 Bonus (0) 0 TOTAL SCORE: 1264 Bonus ------- None Cogmind --------- Core Integrity 0/250 Matter 300/300 Energy 250/250 System Corruption 0% Temperature Cool (82) Movement Rolling (95) Ox1 Location -10/Materials Parts ------- > --- POWER (1) -------- Ion Engine > --- PROPULSION (2) --- Wheel Wheel > --- UTILITY (2) ------ Large Storage Unit Improved Terrain Scanner > --- WEAPON (2) ------- Small Laser Light Assault Rifle > --- INVENTORY (15) --- Light Ion Engine Wheel Wheel Large Storage Unit Structural Scanner Propulsion Shielding Small Laser Peak State ------------ > --- POWER ------------ Ion Engine > --- PROPULSION ------- Wheel Wheel > --- UTILITY ---------- Large Storage Unit Improved Terrain Scanner > --- WEAPON ----------- Small Laser Light Assault Rifle > --- INVENTORY -------- Light Ion Engine Wheel Wheel Large Storage Unit Structural Scanner Propulsion Shielding Small Laser [Rating: 9] Favorites ----------- Power Light Ion Engine Engine Light Ion Engine Propulsion Wheel Treads Light Treads Wheel Wheel Utility Propulsion Shielding Device Structural Scanner Storage Small Storage Unit Protection Propulsion Shielding Weapon Assault Rifle Energy Gun EM Pulse Gun Ballistic Gun Assault Rifle Ballistic Cannon Light Cannon Build | -11 -10 ------- Run | Yrd Mat Slots Evolved . | . . Power . | . . Propulsion . | . . Utility . | . . Weapon . | . . Parts Attached 30 | 6 24 Power 5 | 1 4 Engine 5 | 1 4 Core . | . . Reactor . | . . Propulsion 9 | 2 7 Treads 3 | 2 1 Leg . | . . Wheel 6 | . 6 Hover . | . . Flight . | . . Utility 6 | 1 5 Device 2 | . 2 Storage 2 | 1 1 Processor . | . . Hackware . | . . Protection 2 | . 2 Artifact . | . . Weapon 10 | 2 8 Energy Gun 3 | 1 2 Energy Cannon . | . . Ballistic Gun 5 | 1 4 Ballistic Cannon 2 | . 2 Launcher . | . . Special Weapon . | . . Impact Weapon . | . . Slashing Weapon . | . . Piercing Weapon . | . . Special Melee Weapon . | . . Unidentified Prototypes . | . . Parts Lost 9 | . 9 Power 3 | . 3 Propulsion 3 | . 3 Utility 1 | . 1 Weapon 2 | . 2 Highest Loss Streak 4 | . 4 To Critical Strikes . | . . Average Slot Usage (%) 87 | . 87 Engine 12 | . 12 Treads 7 | . 7 Wheel 19 | . 19 Device 2 | . 2 Storage 3 | . 3 Protection 14 | . 14 Energy Gun 4 | . 4 Ballistic Gun 13 | . 13 Ballistic Cannon 8 | . 8 Peak Build Rating 9 | 6 9 Average Rating 6 | 4 6 On Entrance 3 | . 6 Naked Turns . | . . Heaviest Build 28 | 12 28 Greatest Support 40 | 40 40 Greatest Overweight (x) 2 | . 2 Average Overweight (x) . | . . Largest Inventory Capacity 15 | 8 15 Average Capacity 6 | 7 6 Most Carried 8 | 3 8 Average Carried 3 | 1 3 Final Capacity 15 | 8 15 Final Carried 7 | 3 7 Class Distribution -------------------- 84% | Mutant 15% | Scavenger-Mutant Dominant Class ---------------- Mutant | -10/Materials Resources | -11 -10 ----------- Run | Yrd Mat Matter Collected 1361 | 272 1089 Remotely . | . . Salvage Created 2064 | 92 1972 Parts 136 | 1 135 Haulers Intercepted 1 | . 1 Recyclers Shooed 9 | . 9 Parts Field Recycled . | . . Retrieved Matter . | . . Parts Self-Destructed . | . . Prevented . | . . Kills | -11 -10 ------- Run | Yrd Mat Combat Hostiles Destroyed 18 | . 18 Guns 10 | . 10 Cannons 6 | . 6 AOE 2 | . 2 Classes Destroyed 8 | 1 7 Worker 22 | . 22 Builder 8 | . 8 Tunneler 3 | . 3 Hauler 1 | . 1 Recycler 11 | 1 10 Watcher 3 | . 3 Swarmer 6 | . 6 Grunt 12 | . 12 Best Kill Streak 8 | 1 8 Combat Bots Only 3 | . 3 Max Kills in Single Turn 2 | 1 2 Gunslinging . | . . Exploded 2 | . 2 Melee . | . . Uniques/NPCs Destroyed . | . . Combat | -11 -10 -------- Run | Yrd Mat Hostile Shots Fired 145 | . 145 Missed 41 | . 41 Damage Taken 1253 | . 1253 Core 259 | . 259 Absorbed by Shields . | . . Redirected to Shielding 28 | . 28 Regen/Repaired (Parts) 93 | . 93 Core Remaining (%) 100 | 100 . Volleys Fired 224 | 4 220 Largest 2 | 2 2 Hottest 60 | 60 60 Shots Fired 365 | 8 357 Gun 271 | 8 263 Cannon 94 | . 94 Launcher . | . . Special . | . . Kinetic 290 | 4 286 Thermal 21 | . 21 Explosive . | . . Electromagnetic 54 | 4 50 Robot Hit Streak 13 | 3 13 Robot Miss Streak 4 | 2 4 Penetration Max . | . . Secondary Targets . | . . Shots Hit Robots 211 | 4 207 Core Hits 85 | 2 83 Critical Kills . | . . Critical Parts Destroyed 1 | . 1 Critical Strikes 3 | 1 2 Destroy 1 | . 1 Blast 1 | . 1 Corrupt 1 | 1 . Melee Attacks . | . . Impact . | . . Slashing . | . . Piercing . | . . Sneak Attacks . | . . Combat Hostiles . | . . Follow-up Attacks . | . . Damage Inflicted 3002 | 69 2933 Guns 2000 | 69 1931 Cannons 847 | . 847 Explosions 138 | . 138 Melee . | . . Ramming 17 | . 17 Kinetic 2169 | 29 2140 Thermal 256 | . 256 Explosive . | . . Electromagnetic 560 | 40 520 Impact . | . . Slashing . | . . Piercing . | . . Highest Corruption . | . . Average Corruption . | . . Corruption Purged . | . . Corruption Blocked . | . . Overload Shots . | . . Overflow Damage 20 | . 20 Projectiles 20 | . 20 Explosions . | . . Melee . | . . Knockbacks 15 | . 15 Impact . | . . Kinetic 14 | . 14 Secondary 1 | . 1 Self-Inflicted Damage 81 | . 81 Shots 2 | . 2 Rammed 2 | . 2 Targets Rammed 2 | . 2 Kicked . | . . Crushed . | . . Highest Temperature 84 | . 84 Average Temperature 17 | . 17 Received Heat Transfer 549 | . 549 Siege Activations . | . . Robots Corrupted . | . . Combat Hostiles . | . . Parts Fried . | . . Impact Corruptions . | . . Robots Melted . | . . Combat Hostiles . | . . Parts Melted . | . . Heat Transferred 325 | . 325 Parts Sabotaged . | . . Parts Stolen . | . . Parts Stripped . | . . Power Chain Reactions 2 | . 2 Alert | -11 -10 ------- Run | Yrd Mat Peak Influence 214 | 5 214 Initial 3 | . 3 Average 52 | 1 54 Maximum Alert Level 1 | . 1 Low Security (%) 99 | 100 99 Level 1 . | . . Level 2 . | . . Level 3 . | . . Level 4 . | . . Level 5 . | . . High Security . | . . Max Security . | . . Squads Dispatched 3 | . 3 Investigation 2 | . 2 Extermination . | . . Reinforcement 1 | . 1 Assault . | . . Garrison . | . . Intercept . | . . Searches Triggered . | . . Construction Impeded . | . . Haulers Reinforced . | . . Active Scanning Responses . | . . Cargo Convoy Interrupts . | . . Stealth | -11 -10 --------- Run | Yrd Mat Distress Signals . | . . Communications Jammed . | . . Distress Signals . | . . Times Spotted 27 | . 27 Peak Tracking Total 3 | . 3 Tactical Retreats 1 | . 1 Traps | -11 -10 ------- Run | Yrd Mat Traps Triggered 4 | . 4 Indirectly . | . . Trap Hack Attempts . | . . Triggered . | . . Disarmed . | . . Reprogrammed . | . . Reused . | . . Traps Extracted . | . . Installed . | . . Triggered . | . . Machines | -11 -10 ---------- Run | Yrd Mat Machines Disabled 4 | . 4 Max in Single Turn 1 | . 1 Machines Repaired . | . . Machines Dismantled . | . . Machines Sabotaged . | . . Overloaded Fab Kills . | . . Hacking | -11 -10 --------- Run | Yrd Mat Machines Accessed 6 | . 6 Terminals 5 | . 5 Fabricators . | . . Repair Stations 1 | . 1 Recycling Units . | . . Scanalyzers . | . . Garrison Access . | . . Total Hacks 20 | . 20 Successful 10 | . 10 Failed 10 | . 10 Catastrophic . | . . Database Lockouts . | . . Manual . | . . Terminals 15 | . 15 Fabricators . | . . Repair Stations 5 | . 5 Recycling Units . | . . Scanalyzers . | . . Garrison Access . | . . Terminal Hacks 7 | . 7 Record 3 | . 3 Robot Analysis 1 | . 1 Branch Access Points 1 | . 1 Alert Level 1 | . 1 Transport Status 1 | . 1 Fabricator Hacks . | . . Repair Station Hacks 3 | . 3 Scan Component 2 | . 2 Repair 1 | . 1 Recycling Unit Hacks . | . . Scanalyzer . | . . Garrison Access Hacks . | . . Unauthorized Hacks . | . . Terminals . | . . Fabricators . | . . Repair Stations . | . . Recycling Units . | . . Scanalyzers . | . . Garrison Access . | . . Data Cores Recovered . | . . Used . | . . Hacking Detections 4 | . 4 Full Trace Events 3 | . 3 Feedback Events . | . . Feedback Blocked . | . . Robot Schematics Acquired . | . . Robots Built . | . . Authchips . | . . Time . | . . Total Robot Build Rating . | . . Part Schematics Acquired . | . . Parts Built . | . . Authchips . | . . Time . | . . Total Part Build Rating . | . . Parts Repaired 1 | . 1 Time 26 | . 26 Parts Recycled . | . . Recycled Matter . | . . Retrieved Matter . | . . Retrieved Components . | . . Parts Scanalyzed . | . . Part Schematics Acquired . | . . Parts Damaged . | . . Bothacking | -11 -10 ------------ Run | Yrd Mat Used RIF Installer . | . . Robots Hacked . | . . Non-combat . | . . Combat . | . . Robot Hacks Applied . | . . Relay Couplers Released . | . . Fabnet Peak Effective % . | . . Robots Rewired . | . . Allies Hacked . | . . Hacks Repelled . | . . Allies | -11 -10 -------- Run | Yrd Mat Total Allies . | . . Largest Group . | . . Highest-Rated Group . | . . Highest-Rated Ally . | . . Total Orders . | . . Ally Attacks . | . . Total Damage . | . . Kills . | . . Allies Corrupted . | . . Allies Melted . | . . Intel | -11 -10 ------- Run | Yrd Mat Robot Analysis Total 1 | . 1 Derelict Logs Recovered . | . . Drone Launches . | . . Drone Recoveries . | . . Exploration | -11 -10 ------------- Run | Yrd Mat Turns Passed 3223 | 119 3104 Spaces Moved 2639 | 61 2578 Core 30 | 1 29 Treads 480 | 60 420 Legs . | . . Wheels 2129 | . 2129 Hover . | . . Flight . | . . Fastest Speed 50 | 50 50 Average Speed 95 | 158 93 Slowest Speed 160 | 160 160 Overloaded Moves . | . . Propulsion Burnouts . | . . Robots Hopped . | . . Cave-ins Triggered . | . . Exploration Rate (%) 53 | 5 101 Regions Visited 1 Branch Regions . Pre-discovered Areas . | . . Known Exits Taken . | . . Unknown Exits Taken 1 | 1 . Scrap Searched . | . . Spaces Dug . | . . Terrain Destroyed 9 | . 9 Melee . | . . Projectile . | . . AOE 9 | . 9 Terrain Rammed . | . . Walls Destroyed . | . . Machines Disabled . | . . Actions | -11 -10 --------- Run | Yrd Mat Total 2982 | 73 2909 Wait 61 | . 61 Move 2638 | 60 2578 Hop . | . . Pick Up 17 | 3 14 Fast Attach 19 | 6 13 Attach 9 | . 9 Detach 4 | . 4 Swap 2 | . 2 Drop 6 | . 6 Fire 224 | 4 220 Melee . | . . Ram 2 | . 2 Kick . | . . Crush . | . . Escape Stasis . | . . Rewire . | . . Trap . | . . Miscellaneous . | . . Route ------- -11/Scrapyard -10/Materials (discovered 5 exits: [*Mat x3] / *Min / [*Sub]) History --------- Turn | Location | Event 7 | -11/Scrapyard | Discovered new exit (range 15) 120 | -11/Scrapyard | Entered Materials 246 | -10/Materials | Discovered new exit (range 16) 311 | -10/Materials | Build established: Mutant 1153 | -10/Materials | Discovered new exit (range 7) 1643 | -10/Materials | Discovered new exit (range 15) 1719 | -10/Materials | Discovered new exit (range 16) 1763 | -10/Materials | Repaired Assault Rifle 2434 | -10/Materials | Core integrity fell below 50% 2479 | -10/Materials | Lost 3 parts (1p1u1w) 2734 | -10/Materials | Core integrity fell below 20% 2752 | -10/Materials | Lost 4 parts (1p2n1w) 2818 | -10/Materials | Discovered new exit (range 11) 2865 | -10/Materials | Identified exit to Mines 3051 | -10/Materials | Build established: Scavenger-Mutant 3224 | -10/Materials | Destroyed by G-47 Trooper with Particle Gun Last Messages --------------- 03009_ Acquired 9 matter. 03011_ Dropped Wheel. 03011_ Acquired Wheel. 03014_ Acquired 9 matter. 03026_ K-01 Serf suffers critical hit (Destroy). 03026_ Destroyed Lgt. Ion Engine. 03034_ K-01 Serf destroyed. 03037_ Extracted 6 matter. 03060_ Acquired 10 matter. 03067_ K-01 Serf collects debris. 03072_ K-01 Serf destroyed. 03078_ Acquired 2 matter. 03115_ Acquired Lrg. Storage Unit. 03126_ K-01 Serf collects debris. 03177_ Acquired 2 matter. 03194_ Acquired Imp. Terrain Scanner. 03198_ Acquired 10 matter. 03209_ Acquired 1 matter. 03216_ G-34 Mercenary destroyed. 03217_ Acquired 1 matter. Map ----- +----------------------------------------------------+ | ###??????## # ##?????????? | | ##??###### !! """ # ##?????????? | | ########## """ # ##?????????? | | ###### # """ # ##?????????? | | ####"" < # ! # ##?????????? | | ####T # ######+#######?????????? | | ###### ###+########## #####?????????? | | ^^ %* % ##????????????? | | ^^ ##????????????? | | ##????????????? | | ########+############### ##????????????? | | ##### ############ ###????????????? | | #??## ##?#?????### ###????????????? | | #??## ##????????## ##?????????????? | | #??## ##????????## ##?????????????? | | ???## ##?#??????## ##?????????????? | | ???## ##???????### ###????????????? | | ???## ##???????### #############??? | | ???## ##???????## u#############?? | | ???## ##???????## % !###?? | | ???############???????## !##?? | | ???############???????## * ##?? | | ?????????????????????### ![! #### ##?? | | ?????????????????????#####g###### !##?? | | #####????????????????## =%= # !###?? | | #????????????????## @= # =######?? | | "" #????????????????## # #####??? | | "" #????????????????## " """ #%! ##?????? | | "" #????????????????## """"" #* ##?????? | | #????????????????## """"" #%! ###????? | | "" #????????????????## #!%!##?????? | | "" #?????????######### # = ##?????? | | "" #?????????# ############# ##?????? | | #?????????#""" !# #### ##?????? | | ##+##?????????#""" # !!! T #?## ##?????? | | ?# #??????????#""" # !!! #?## ##?????? | | ## #??????????#""" =# !! #?## ##?????? | | #??????????#""" #! #?## % ##?????? | | ###??????????# # """" #?##* ##?????? | | T#????????????####+## """" #?##%! ##?????? | | ################## + = " #?##= ##?????? | | = # # # % % #### ######## | | # """ """ # #####+####### # # | | """ # """ """ # ! % %=%= # """# | | """ # """ """*+ %!% ! # """# | | """ # #% * """ + """# | | %"""%# ! % ########+## """ # # | | " #=! =* #### # """ # * # | | #=%%=%= #??# # """ ####+### | | ####+#####+#######??# # """ # # | +----------------------------------------------------+ Best States ------------- Heat Dissipation 25 Energy Generation 10 Energy Capacity 250 Matter Stores 300 Matter Capacity 300 Sight Range 16 Terrain Scan Range 16 Terrain Scan Density 10 Armor Coverage 150 Propulsion Shielding 33 Evasion (%) 50 Recoil Reduction 2 Item Schematics ----------------- None Robot Schematics ------------------ None Fabricated ------------ Nothing Alien Tech Used ----------------- None Achievements -------------- None Challenges ------------ None Game ------ Seed ConcussiveGrenadeMachine Manual? 0 Play Time 00:26:44 Cumulative 4.3 hours Start 2024.08.26 @ 12:04:18 End 2024.08.26 @ 12:31:22 Sessions 1 Manual Loads 0 Difficulty Rogue Special Mode None Game No. 6 Rogue 6 Adventurer 0 Explorer 0 Win Type - Total 0 Types 0/0/0/0/0/0/0/0/0 Lore% 0 Gallery% 5 Achievement% 5 Wizard Run 0 Options --------- Layout 0 ASCII 0 Keyboard 1 Movement Numpad Keybinds 0 Fullscreen 1 Font 24/Smallcaps Map View 76x50 Zoom Use 0% Tactical HUD 1 Map Filters NONE Filters NONE Steam 1 RUN: 6c35772f-7555-4b49-a41e-bd637174fb0a